Cogmind - Beta 15 *** ADVENTURER MODE // 2025.08.03 @ 17:16:03 Player: LegoMDS Result: Destroyed by Piercing Trap Performance ------------- Evolutions (0) 0 Regions Visited (3) 600 Robots Destroyed (35) 175 Value Destroyed (723) 723 Prototype IDs (4) 80 Alien Tech Used (0) 0 Bonus (49) 49 TOTAL SCORE: 1627 Bonus ------- Follower Combat Kills 49 Cogmind --------- Core Integrity 0/250 Matter 300/300 Energy 148/150 System Corruption 0% Temperature Cool (1) Movement Walking (120) Location -10/Subcaves Parts ------- > --- POWER (1) -------- Light Angular Momentum Engine > --- PROPULSION (2) --- Carbon-fiber Leg > --- UTILITY (2) ------ Melee Analysis Suite Backup Plating I > --- WEAPON (2) ------- Battle Rifle Katana > --- INVENTORY (5) ---- Deuterium Engine Cryofiber Web Experimental Sensor Array Actuator Array Subdweller Laser Peak State ------------ > --- POWER ------------ Light Angular Momentum Engine > --- PROPULSION ------- Carbon-fiber Leg > --- UTILITY ---------- Small Storage Unit Melee Analysis Suite > --- WEAPON ----------- Battle Rifle Katana > --- INVENTORY -------- Deuterium Engine Cryofiber Web Experimental Sensor Array Actuator Array Subdweller Laser [Rating: 19] Favorites ----------- Power Ion Engine Engine Ion Engine Propulsion Light Treads Treads Light Treads Leg Carbon-fiber Leg Utility Small Storage Unit Storage Small Storage Unit Processor Melee Analysis Suite Protection Backup Plating I Weapon Assault Rifle Energy Gun Particle Gun Ballistic Gun Assault Rifle Slashing Weapon Katana Build | -11 -10 -10 -10 ------- Run | Yrd Mat Min Sub Slots Evolved . | . . . . Power . | . . . . Propulsion . | . . . . Utility . | . . . . Weapon . | . . . . Parts Attached 23 | 6 5 5 7 Power 5 | 1 1 2 1 Engine 5 | 1 1 2 1 Core . | . . . . Reactor . | . . . . Propulsion 5 | 2 1 1 1 Treads 4 | 2 1 1 . Leg 1 | . . . 1 Wheel . | . . . . Hover . | . . . . Flight . | . . . . Utility 4 | 1 1 . 2 Device . | . . . . Storage 1 | 1 . . . Processor 1 | . . . 1 Hackware . | . . . . Protection 2 | . 1 . 1 Artifact . | . . . . Weapon 9 | 2 2 2 3 Energy Gun 5 | 1 2 1 1 Energy Cannon . | . . . . Ballistic Gun 3 | 1 . 1 1 Ballistic Cannon . | . . . . Launcher . | . . . . Special Weapon . | . . . . Impact Weapon . | . . . . Slashing Weapon 1 | . . . 1 Piercing Weapon . | . . . . Special Melee Weapon . | . . . . Unidentified Prototypes . | . . . . Parts Lost 1 | . . . 1 Power . | . . . . Propulsion 1 | . . . 1 Utility . | . . . . Weapon . | . . . . Highest Loss Streak 1 | . . . 1 To Critical Strikes . | . . . . Average Backups 7 | 3 7 8 7 Power . | . 1 1 1 Propulsion 2 | 2 2 1 . Utility 1 | . . 2 3 Weapon 2 | . 2 1 1 Tool/Special . | . . . . Unused Backups 9 | . 1 4 4 Power 1 | . 1 . . Propulsion 2 | . . 2 . Utility 3 | . . . 3 Weapon 2 | . . 2 . Tool/Special 1 | . . . 1 Average Slot Usage (%) 96 | . 92 100 98 Engine 13 | . 13 14 14 Treads 27 | . 27 28 26 Storage 13 | . 14 14 13 Protection 11 | . 8 14 13 Energy Gun 13 | . 14 14 13 Ballistic Gun 13 | . 14 14 13 Peak Build Rating 19 | 6 8 12 19 Average Rating 9 | 4 6 10 13 On Entrance 6 | . 6 8 12 Naked Turns . | . . . . Heaviest Build 21 | 12 16 20 21 Greatest Support 40 | 40 40 40 40 Greatest Overweight (x) . | . . . . Average Overweight (x) . | . . . . Largest Inventory Capacity 8 | 8 8 8 8 Average Capacity 7 | 6 8 8 7 Most Carried 8 | 5 8 8 8 Average Carried 7 | 3 7 7 7 Final Capacity 8 | 8 8 8 5 Final Carried 8 | 4 8 8 5 Class Distribution -------------------- 100% | Mutant Dominant Class ---------------- Mutant | -10/Materials Mutant | -10/Mines Mutant | -10/Subcaves Resources | -11 -10 -10 -10 ----------- Run | Yrd Mat Min Sub Matter Collected 770 | 226 260 98 186 Remotely . | . . . . Salvage Created 1035 | . 617 168 250 Parts 72 | . 40 17 15 Haulers Intercepted 2 | . 2 . . Recyclers Shooed . | . . . . Parts Field Recycled . | . . . . Retrieved Matter . | . . . . Parts Self-Destructed 13 | . . . 13 Prevented . | . . . . Kills | -11 -10 -10 -10 ------- Run | Yrd Mat Min Sub Combat Hostiles Destroyed 27 | . 12 7 8 Guns 26 | . 11 7 8 Classes Destroyed 7 | . 6 . 1 Builder 2 | . 2 . . Hauler 2 | . 2 . . Recycler 1 | . 1 . . Watcher 3 | . 3 . . Swarmer 13 | . 7 4 2 Grunt 8 | . 5 3 . Subdweller 6 | . . . 6 Best Kill Streak 5 | . 5 4 2 Combat Bots Only 4 | . 3 4 2 Max Kills in Single Turn 2 | . 2 1 1 Gunslinging 1 | . 1 . . Exploded . | . . . . Melee . | . . . . Uniques/NPCs Destroyed . | . . . . Combat | -11 -10 -10 -10 -------- Run | Yrd Mat Min Sub Hostile Shots Fired 155 | . 81 28 46 Missed 42 | . 19 11 12 Hits 113 | . 62 17 34 Projectile 113 | . 62 17 34 Critical Strikes 1 | . . . 1 Damage Taken 1175 | . 421 133 621 Core 263 | . 84 20 159 Absorbed by Shields . | . . . . Redirected to Shielding 7 | . 7 . . Ignored by Resistances 346 | . 138 39 169 Regen/Repaired (Parts) 204 | . 204 . . Core Remaining (%) 100 | 100 . . . Volleys Fired 85 | . 44 14 27 Largest 2 | . 2 2 2 Hottest 90 | . 85 85 90 Shots Fired 170 | . 88 28 54 Gun 170 | . 88 28 54 Cannon . | . . . . Launcher . | . . . . Special . | . . . . Kinetic 85 | . 44 14 27 Thermal 81 | . 40 14 27 Explosive . | . . . . Electromagnetic 4 | . 4 . . Robot Hit Streak 18 | . 13 11 18 Robot Miss Streak 4 | . 1 4 1 Penetration Max . | . . . . Secondary Targets 5 | . 2 2 1 Max Gunslinging Chain 1 | . 1 1 1 Shots Hit Robots 132 | . 71 15 46 Core Hits 49 | . 29 7 13 Critical Kills . | . . . . Critical Parts Destroyed . | . . . . Critical Strikes 8 | . 6 1 1 Burn 7 | . 5 1 1 Corrupt 1 | . 1 . . Melee Attacks 2 | . . . 2 Impact . | . . . . Slashing 2 | . . . 2 Piercing . | . . . . Sneak Attacks . | . . . . Combat Hostiles . | . . . . Follow-up Attacks . | . . . . Damage Inflicted 1871 | . 940 245 686 Guns 1871 | . 940 245 686 Cannons . | . . . . Explosions . | . . . . Melee . | . . . . Ramming . | . . . . Kinetic 838 | . 457 90 291 Thermal 980 | . 430 155 395 Explosive . | . . . . Electromagnetic 53 | . 53 . . Impact . | . . . . Slashing . | . . . . Piercing . | . . . . Highest Corruption . | . . . . Average Corruption . | . . . . Corruption Purged . | . . . . Corruption Blocked . | . . . . Overload Shots . | . . . . Overflow Damage . | . . . . Projectiles . | . . . . Explosions . | . . . . Melee . | . . . . Knockbacks . | . . . . Impact . | . . . . Kinetic . | . . . . Secondary . | . . . . Self-Inflicted Damage . | . . . . Shots . | . . . . Rammed . | . . . . Targets Rammed . | . . . . Kicked . | . . . . Crushed . | . . . . Highest Temperature 237 | . 117 237 227 Average Temperature 52 | . 28 82 84 Received Heat Transfer 516 | . 117 48 351 Siege Activations . | . . . . Martial Activations . | . . . . Shielding Activations . | . . . . Robots Disrupted . | . . . . Combat Hostiles . | . . . . Robots Corrupted . | . . . . Combat Hostiles . | . . . . Parts Fried . | . . . . Impact Corruptions . | . . . . Robots Melted 1 | . 1 . . Combat Hostiles 1 | . 1 . . Parts Melted 3 | . 1 1 1 Heat Transferred 2864 | . 1591 444 829 Parts Sabotaged . | . . . . Parts Stolen . | . . . . Parts Stripped . | . . . . Power Chain Reactions . | . . . . Alert | -11 -10 -10 -10 ------- Run | Yrd Mat Min Sub Maximum Alert Level . | . . . . Low Security (%) 100 | 100 100 100 . Level 1 . | . . . . Level 2 . | . . . . Level 3 . | . . . . Level 4 . | . . . . Level 5 . | . . . . High Security . | . . . . Max Security . | . . . . Peak Influence 167 | . 86 167 . Initial . | . . . . Average 27 | . 20 40 . Influence Increases 679 | . 377 247 55 Destroy 0b10 Robot/C 480 | . 240 200 40 Destroy 0b10 Robot/NC 40 | . 40 . . Destroy Leader 90 | . 60 30 . Allied During Kill 17 | . . 17 . Successful Hack 35 | . 35 . . Destroy Structure 2 | . 2 . . Lose Combat Pursuer 15 | . . . 15 Influence Decreases 674 | . 377 247 50 Time Decay 664 | . 377 247 40 Lost Part 10 | . . . 10 Squads Dispatched 3 | . 2 1 . Investigation 2 | . 2 . . Extermination . | . . . . Reinforcement . | . . . . Assault 1 | . . 1 . Garrison . | . . . . Intercept . | . . . . Searches Triggered . | . . . . Construction Impeded . | . . . . Haulers Reinforced . | . . . . Active Scanning Responses . | . . . . Cargo Convoy Interrupts . | . . . . Stealth | -11 -10 -10 -10 --------- Run | Yrd Mat Min Sub Distress Signals . | . . . . Communications Jammed . | . . . . Distress Signals . | . . . . Times Spotted 37 | . 17 11 9 Peak Tracking Total 4 | . 3 4 3 Tactical Retreats 1 | . . . 1 Traps | -11 -10 -10 -10 ------- Run | Yrd Mat Min Sub Traps Triggered 5 | . 4 . 1 Indirectly . | . . . . Trap Hack Attempts . | . . . . Triggered . | . . . . Disarmed . | . . . . Reprogrammed . | . . . . Reused . | . . . . Traps Extracted . | . . . . Installed . | . . . . Triggered . | . . . . Machines | -11 -10 -10 -10 ---------- Run | Yrd Mat Min Sub Machines Disabled . | . . . . Max in Single Turn . | . . . . Machines Repaired . | . . . . Machines Dismantled . | . . . . Machines Sabotaged . | . . . . Overloaded Fab Kills . | . . . . Hacking | -11 -10 -10 -10 --------- Run | Yrd Mat Min Sub Machines Accessed 8 | . 7 1 . Terminals 6 | . 6 . . Fabricators . | . . . . Repair Stations 1 | . 1 . . Recycling Units . | . . . . Scanalyzers . | . . . . Garrison Access . | . . . . Total Hacks 20 | . 19 1 . Successful 15 | . 14 1 . Failed 5 | . 5 . . Catastrophic . | . . . . Database Lockouts . | . . . . Manual 1 | . 1 . . Terminals 12 | . 12 . . Fabricators . | . . . . Repair Stations 7 | . 7 . . Recycling Units . | . . . . Scanalyzers . | . . . . Garrison Access . | . . . . Terminal Hacks 10 | . 9 1 . Prototype ID Bank 2 | . 2 . . Open Door 1 | . . 1 . Level Access Points 1 | . 1 . . Branch Access Points 1 | . 1 . . Emergency Access Points 1 | . 1 . . Hauler Manifests 2 | . 2 . . Registered Components 1 | . 1 . . Zone Layout 1 | . 1 . . Fabricator Hacks . | . . . . Repair Station Hacks 5 | . 5 . . Scan Component 2 | . 2 . . Repair 2 | . 2 . . Refit 1 | . 1 . . Recycling Unit Hacks . | . . . . Scanalyzer . | . . . . Garrison Access Hacks . | . . . . Unauthorized Hacks . | . . . . Terminals . | . . . . Fabricators . | . . . . Repair Stations . | . . . . Recycling Units . | . . . . Scanalyzers . | . . . . Garrison Access . | . . . . Data Cores Recovered . | . . . . Used . | . . . . Hacking Detections 4 | . 4 . . Full Trace Events . | . . . . Feedback Events . | . . . . Feedback Blocked . | . . . . Robot Schematics Acquired . | . . . . Robots Built . | . . . . Authchips . | . . . . Time . | . . . . Total Robot Build Rating . | . . . . Part Schematics Acquired . | . . . . Parts Built . | . . . . Authchips . | . . . . Time . | . . . . Total Part Build Rating . | . . . . Parts Repaired 2 | . 2 . . Time 52 | . 52 . . Parts Recycled . | . . . . Recycled Matter . | . . . . Retrieved Matter . | . . . . Retrieved Components . | . . . . Parts Scanalyzed . | . . . . Part Schematics Acquired . | . . . . Parts Damaged . | . . . . Bothacking | -11 -10 -10 -10 ------------ Run | Yrd Mat Min Sub Used RIF Installer . | . . . . Robots Hacked . | . . . . Non-combat . | . . . . Combat . | . . . . Robot Hacks Applied . | . . . . Relay Couplers Released . | . . . . Fabnet Peak Effective % . | . . . . Robots Rewired . | . . . . Allies Hacked . | . . . . Hacks Repelled . | . . . . Allies | -11 -10 -10 -10 -------- Run | Yrd Mat Min Sub Total Allies 4 | . . 4 . Largest Group 4 | . . 4 4 Highest-Rated Group 71 | . . 71 71 Highest-Rated Ally 31 | . . 31 31 Total Orders . | . . . . Ally Attacks 35 | . . 16 19 Total Damage 352 | . . 184 168 Kills 3 | . . 3 . Allies Corrupted . | . . . . Allies Melted . | . . . . Intel | -11 -10 -10 -10 ------- Run | Yrd Mat Min Sub Active Infowar (turns) . | . . . . Robot Analysis Total . | . . . . Derelict Logs Recovered 3 | . . 2 1 Drone Launches . | . . . . Drone Recoveries . | . . . . Exploration | -11 -10 -10 -10 ------------- Run | Yrd Mat Min Sub Turns Passed 2990 | 65 1436 950 539 Spaces Moved 1545 | 40 739 492 274 Core 12 | 12 . . . Treads 1516 | 28 739 492 257 Legs 17 | . . . 17 Wheels . | . . . . Hover . | . . . . Flight . | . . . . Fastest Speed 50 | 50 160 160 120 Average Speed 158 | 127 160 160 157 Slowest Speed 160 | 160 160 160 160 Overloaded Moves . | . . . . Propulsion Burnouts . | . . . . Robots Hopped . | . . . . Potential Cave-ins . | . . . . Cave-ins Triggered . | . . . . Exploration Rate (%) 55 | 3 98 87 32 Regions Visited 3 Branch Regions 2 Pre-discovered Areas 3 | . . 1 2 Known Exits Taken 1 | . 1 . . Unknown Exits Taken 2 | 1 . 1 . Scrap Searched 1 | . . 1 . Spaces Dug . | . . . . Terrain Destroyed . | . . . . Melee . | . . . . Projectile . | . . . . AOE . | . . . . Terrain Rammed . | . . . . Walls Destroyed . | . . . . Machines Disabled . | . . . . Actions | -11 -10 -10 -10 --------- Run | Yrd Mat Min Sub Total 1916 | 54 904 630 328 Wait 209 | . 100 107 2 Move 1542 | 39 738 491 274 Hop . | . . . . Pick Up 24 | 9 7 5 3 Fast Attach 7 | 1 5 . 1 Attach 8 | 5 1 . 2 Detach . | . . . . Swap 17 | . 4 5 8 Drop 22 | . 5 8 9 Fire 85 | . 44 14 27 Melee 2 | . . . 2 Ram . | . . . . Kick . | . . . . Crush . | . . . . Escape Stasis . | . . . . Rewire . | . . . . Trap . | . . . . Miscellaneous . | . . . . Route ------- -11/Scrapyard -10/Materials (discovered 5 exits: *Mat x3 / *Min / [*Sub]) -10/Mines (discovered 2 exits: Mat / [*Sub]) -10/Subcaves (discovered 2 exits: [*Mat] / [*Scr]) History --------- Turn | Location | Event 5 | -11/Scrapyard | Discovered new exit (range 15) 66 | -11/Scrapyard | Entered Materials 262 | -10/Materials | Identified exit to Materials 302 | -10/Materials | Build established: Mutant 717 | -10/Materials | Discovered new exit (range 16) 1040 | -10/Materials | Repaired Lgt. Treads 1067 | -10/Materials | Repaired Lgt. Treads 1132 | -10/Materials | Identified exit to Mines 1135 | -10/Materials | Discovered new exit (range 8) 1502 | -10/Materials | Entered Mines 1503 | -10/Mines | Met a Derelict testing a Signal Generator 1622 | -10/Mines | Assisted by bots powering up and referring to "LRC-V3" 1819 | -10/Mines | Found a damaged Exp. Sensor Array with a note attached 1825 | -10/Mines | Found Prototype Device 1929 | -10/Mines | Met a Derelict who couldn't figure out how to use a Trap Extractor 1973 | -10/Mines | Learned location of Zion (-7) 2435 | -10/Mines | Discovered new exit (range 9) 2452 | -10/Mines | Entered Subcaves 2452 | -10/Subcaves | Accompanied by 4 allies 2453 | -10/Subcaves | Approached by a straggling Scientist 2562 | -10/Subcaves | Met a Zionite searching for "candidates" 2572 | -10/Subcaves | Discovered new exit (range 7) 2698 | -10/Subcaves | Lost 4 allies 2719 | -10/Subcaves | Scientist uncovered a shortcut to Scraptown 2808 | -10/Subcaves | Core integrity fell below 50% 2928 | -10/Subcaves | Ambushed by Subdwellers from Twisted Machinery 2946 | -10/Subcaves | Core integrity fell below 20% 2991 | -10/Subcaves | Destroyed by Piercing Trap Last Messages --------------- S-10 Pest suffers critical hit (Burn). Flight Unit fries itself beyond repair. S-10 Pest destroyed. Lgt. Assault Rifle fries itself beyond repair. Acquired 13 matter. Lgt. Treads destroyed. EX-2OU(R) destroyed. Switching to secondary target: 10-S2S(R). 10-S2S(R) destroyed. Acquired 36 matter. Dropped Backup Plating I. Dropped Lgt. Treads. Dropped Particle Gun. Dropped Sml. Storage Unit. Acquired Backup Plating I. Acquired 6 matter. Acquired 34 matter. Triggered Piercing Trap. Spikes shoot up from the floor. Critical hit (Impale). Map ----- +----------------------------------------------------+ | ??????????????## ##???????????? | | ???????????????##=% ##????????????? | | ????????????????## # ##?????????????? | | ?????????????????# ###??????????????? | | ????????????????## #??###??????????? | | ????????????????# ##?? ##?????????? | | ????????????????## #?? ##????????? | | ????????????????# #?? ##???????? | | ????????????????# ##?? #???????? | | ????????????????## #?## #???????? | | ????????????????## ### #???????? | | ????????????????# # #??????????? | | ????????????????## #???????????? | | ????????????????# # ##??????????? | | ???????????????###[### #??????????? | | ???????????????# ! *[ #??????????? | | ??????????????## *%! ! ##??????????? | | ??????????????# ##= ##???????????? | | ??????????#####" #####????????????? | | ??????????# #<" ##???????????????? | | ??????????# ##??????????????? | | ??????????# #??????????????? | | ??????????# #" #?????????????? | | ?????????### ## #?????????????? | | ????#<<<##< # #?????????????? | | ??#< < < @ ##" #?????????????? | | ???< << <<<< ## " ##?????????????? | | ????"<<<< << ###" """#??????????????? | | ?????"< < <###?"""" ##??????????????? | | ??????#####????# ##???????????????? | | ???????????????? ##????????????????? | | ???????????????? ##?????????????????? | | ????????????????#???????????????????? | | ????????????????????????????????????? | | ????????????????????????????????????? | | ????????????????????????????????????? | | ????????????????????????????????????? | | ????????????????????????????????????? | | ????????????????????????????????????? | | ????????????????????????????????????? | | ????????????????????????????????????? | | ????????????????????????????????????? | | ????????????????????????????????????? | | ????????????????????????????????????? | | ????????????????????????????????????? | | ????????????????????????????????????? | | ????????????????????????????????????? | | ????????????????????????????????????? | | ????????????????????????????????????? | | ????????????????????????????????????? | +----------------------------------------------------+ Best States ------------- Heat Dissipation 25 Energy Generation 18 Energy Capacity 275 Matter Stores 300 Matter Capacity 300 Sight Range 16 Terrain Scan Density 10 Armor Coverage 80 Resistance: KI 20 Resistance: TH 20 Resistance: EX 20 Resistance: EM 20 Resistance: I 20 Resistance: S 20 Resistance: P 20 Core Shielding 20 Evasion (%) 50 Melee Accuracy 5 Recoil Reduction 2 Offensive Hacking 10 Item Schematics ----------------- None Robot Schematics ------------------ None Fabricated ------------ Nothing Repaired ---------- Lgt. Treads | 18% | -10/Materials Lgt. Treads | 35% | -10/Materials Alien Tech Used ----------------- None Achievements -------------- None Challenges ------------ None Game ------ Seed AssemblyCryofiberModule Manual? 0 Play Time 00:13:55 Cumulative 93.1 hours Start 2025.08.03 @ 17:02:36 End 2025.08.03 @ 17:16:03 Sessions 1 Manual Loads 0 Difficulty Adventurer Special Mode None Game No. 135 Rogue 13 Adventurer 122 Explorer 0 Win Type - Total 0 Types 0/0/0/0/0/0/0/0/0/0 Lore% 68 Gallery% 60 Achievement% 46 Wizard Run 0 Options --------- Layout 1 ASCII 0 Keyboard 0 Movement Mouse Keybinds 0 Fullscreen 1 Font 32/SmallcapsGlow Map View 50x35 Zoom Use 0% Tactical HUD 0 Map Filters NONE Filters NONE Steam 1 RUN: 78c40138-075d-476d-87df-f463729c1d8e